fUST/lending_fUST_20250811
["ID","MTS","AMOUNT","RATE_DAILY","PERIOD"]
[378598780,1754921466954,-49.59869425,0.00019726,2]
[378598781,1754921467101,-4991.51285861,0.00018986,2]
[378598782,1754921467230,-8.48714139,0.00018986,2]
[378598783,1754921467240,-460.0,0.00019178,2]
[378598784,1754921467250,-460.0,0.00019452,2]
[378598785,1754921467260,-157.45094858,0.00019726,2]
[378598786,1754921467271,-445.47315161,0.00019726,2]
[378598787,1754921467280,-65044.4675416,0.0001999,2]
[378598788,1754921467291,-786.24496399,0.0002,2]
[378598789,1754921467301,-460.0,0.0002,2]
[378598790,1754921467310,-460.0,0.0002,2]
[378598791,1754921467320,-799.28,0.0002,2]
[378598792,1754921467329,-460.0,0.0002,2]
[378598793,1754921467339,-460.0,0.0002,2]
[378598794,1754921467349,-1030.71,0.0002,2]
[378598795,1754921467358,-460.0,0.0002,2]
[378598796,1754921467368,-460.0,0.0002,2]
[378598797,1754921467376,-460.0,0.0002,2]
[378598798,1754921467386,-460.0,0.0002,2]
[378598799,1754921467395,-460.0,0.0002,2]
[378598800,1754921467405,-475.54,0.0002,2]
[378598801,1754921467415,-460.0,0.0002,2]
[378598802,1754921467425,-460.0,0.0002,2]
[378598803,1754921467434,-933.32,0.0002,2]
[378598804,1754921467444,-594.93,0.0002,2]
[378598805,1754921467454,-460.0,0.0002,2]
[378598806,1754921467464,-3282.0,0.00020011,2]
[378598807,1754921467473,-526.83890217,0.00020021,2]
[378598808,1754921467482,-519.63095064,0.00020021,2]
[378598809,1754921467491,-1000.0,0.00020021,2]
[378598810,1754921467500,-967.67080017,0.00020021,2]
[378598811,1754921467510,-1000.0,0.00020021,2]
[378598812,1754921467519,-1000.0,0.00020021,2]
[378598813,1754921467529,-1000.0,0.00020021,2]
[378598814,1754921467538,-281.08662514,0.00020021,2]
[378598815,1754921467548,-151.0,0.000201,4]
[378598816,1754921467558,-800.0,0.00020118,2]
[378598817,1754921467567,-188.94114085,0.00020164,3]
[378598818,1754921467577,-1500.0,0.00020168,2]
[378598819,1754921467587,-1500.0,0.00020168,2]
[378598820,1754921467596,-1500.0,0.00020168,2]
[378598821,1754921467606,-1500.0,0.00020168,2]
[378598822,1754921467615,-1500.0,0.00020168,2]
[378598823,1754921467624,-1500.0,0.00020168,2]
[378598824,1754921467633,-1500.0,0.00020168,2]
[378598825,1754921467642,-500.0,0.00020173,2]
[378598826,1754921467652,-764.801562,0.00020187,2]
[378598827,1754921467661,-184.37172481,0.00020196,2]
[378598828,1754921467671,-151.0,0.000202,4]
[378598829,1754921467681,-3282.0,0.00020238,2]
[378598830,1754921467691,-1500.0,0.00020268,2]
[378598831,1754921467701,-1500.0,0.00020268,2]
[378598832,1754921467713,-1500.0,0.00020268,2]
[378598833,1754921467723,-1500.0,0.00020268,2]
[378598834,1754921467732,-570.05000165,0.00020268,2]
[378598835,1754921467742,-165.91152342,0.00020268,2]
[378598836,1754921467751,-1193.51165643,0.00020268,2]
[378598837,1754921467761,-1500.0,0.00020268,2]
[378598838,1754921467771,-1500.0,0.00020268,2]
[378598839,1754921467780,-1500.0,0.00020268,2]
[378598840,1754921467790,-380.01458645,0.00020268,2]
[378598841,1754921467800,-1511.4557955,0.00020268,2]
[378598842,1754921467811,-1385.57904354,0.00020268,2]
[378598843,1754921467820,-1500.0,0.00020268,2]
[378598844,1754921467831,-502.38537494,0.00020268,2]
[378598845,1754921467840,-664.02290298,0.00020268,2]
[378598846,1754921467849,-1442.07213191,0.00020268,2]
[378598847,1754921467859,-1500.0,0.00020268,2]
[378598848,1754921467868,-1500.0,0.00020268,2]
[378598849,1754921467879,-152.47978686,0.00020268,2]
[378598850,1754921467888,-1500.0,0.00020268,2]
[378598851,1754921467898,-1149.13665048,0.00020268,2]
[378598852,1754921467908,-1500.0,0.00020268,2]
[378598853,1754921467917,-522.87606033,0.00020268,2]
[378598854,1754921467928,-1500.0,0.00020268,2]
[378598855,1754921467937,-1500.0,0.00020268,2]
[378598856,1754921467948,-151.0,0.00020272,2]
[378598857,1754921467958,-151.0,0.00020272,2]
[378598858,1754921467967,-500.0,0.00020273,2]
[378598859,1754921467977,-500.0,0.00020273,2]
[378598860,1754921467987,-500.0,0.00020273,2]
[378598861,1754921467996,-552.44653617,0.00020273,2]
[378598862,1754921468009,-500.0,0.00020273,2]
[378598863,1754921468019,-600.0,0.00020273,2]
[378598864,1754921468029,-298.29828142,0.00020273,2]
[378598865,1754921468038,-500.0,0.00020273,2]
[378598866,1754921468048,-281.26999205,0.00020273,2]
[378598867,1754921468057,-500.0,0.00020273,2]
[378598868,1754921468067,-500.0,0.00020273,2]
[378598869,1754921468077,-500.0,0.00020273,2]
[378598870,1754921468088,-500.0,0.00020273,2]
[378598871,1754921468097,-500.0,0.00020273,2]
[378598872,1754921468106,-500.0,0.00020273,2]
[378598873,1754921468116,-500.0,0.00020273,2]
[378598874,1754921468126,-151.0,0.00020273,2]
[378598875,1754921468135,-151.0,0.00020273,2]
[378598876,1754921468145,-151.0,0.00020273,2]
[378598877,1754921468158,-151.0,0.00020273,2]
[378598878,1754921468168,-427.789535,0.00020273,2]
[378598879,1754921468178,-427.789535,0.00020273,2]
[378598880,1754921468187,-151.0,0.00020273,2]
[378598881,1754921468198,-151.0,0.00020273,2]
[378598882,1754921468208,-151.0,0.00020273,2]
[378598883,1754921468217,-151.0,0.00020273,2]
[378598884,1754921468226,-157.872442,0.00020273,2]
[378598885,1754921468236,-157.872442,0.00020273,2]
[378598886,1754921468246,-151.861524,0.00020273,2]
[378598887,1754921468255,-151.0,0.00020273,2]
[378598888,1754921468265,-151.0,0.00020273,2]
[378598889,1754921468274,-151.0,0.00020273,2]
[378598890,1754921468283,-749.415656,0.00020273,2]
[378598891,1754921468292,-749.415656,0.00020273,2]
[378598892,1754921468302,-316.146295,0.00020273,2]
[378598893,1754921468311,-341.600839,0.00020273,2]
[378598894,1754921468321,-341.600839,0.00020273,2]
[378598895,1754921468331,-460.0,0.00020273,2]
[378598896,1754921468340,-460.0,0.00020273,2]
[378598897,1754921468350,-470.07436065,0.00020273,2]
[378598898,1754921468359,-460.0,0.00020273,2]
[378598899,1754921468369,-460.0,0.00020273,2]
[378598900,1754921468379,-534.06432191,0.00020273,2]
[378598901,1754921468389,-460.0,0.00020273,2]
[378598902,1754921468399,-460.0,0.00020273,2]
[378598903,1754921468408,-1134.52,0.00020273,2]
[378598904,1754921468418,-460.0,0.00020273,2]
[378598905,1754921468428,-460.0,0.00020273,2]
[378598906,1754921468439,-460.0,0.00020273,2]
[378598907,1754921468449,-460.0,0.00020273,2]
[378598908,1754921468460,-460.0,0.00020273,2]
[378598909,1754921468470,-606.11,0.00020273,2]
[378598910,1754921468480,-688.47,0.00020273,2]
[378598911,1754921468490,-907.5,0.00020273,2]
[378598912,1754921468500,-636.44,0.00020273,2]
[378598913,1754921468509,-611.73,0.00020273,2]
[378598914,1754921468519,-514.22,0.00020273,2]
[378598915,1754921468529,-460.0,0.00020273,2]
[378598916,1754921468539,-460.0,0.00020273,2]
[378598917,1754921468548,-460.0,0.00020273,2]
[378598918,1754921468558,-537.82229867,0.00020273,2]
[378598919,1754921468567,-460.0,0.00020273,2]
[378598920,1754921468577,-460.0,0.00020273,2]
[378598921,1754921468587,-460.0,0.00020273,2]
[378598922,1754921468596,-470.12,0.00020273,2]
[378598923,1754921468606,-460.0,0.00020273,2]
[378598924,1754921468616,-460.0,0.00020273,2]
[378598925,1754921468626,-864.34,0.00020273,2]
[378598926,1754921468636,-460.0,0.00020273,2]
[378598927,1754921468646,-460.0,0.00020273,2]
[378598928,1754921468657,-460.0,0.00020273,2]
[378598929,1754921468667,-225.39257738,0.00020273,2]
[378598930,1754921468676,-671.36,0.00020273,2]
[378598931,1754921468686,-623.81,0.00020273,2]
[378598932,1754921468696,-662.38,0.00020273,2]
[378598933,1754921468706,-608.84,0.00020273,2]
[378598934,1754921468715,-460.0,0.00020273,2]
[378598935,1754921468724,-460.0,0.00020273,2]
[378598936,1754921468734,-536.78,0.00020273,2]
[378598937,1754921468742,-460.0,0.00020273,2]
[378598938,1754921468751,-702.41,0.00020273,2]
[378598939,1754921468761,-460.0,0.00020273,2]
[378598940,1754921468770,-460.0,0.00020273,2]
[378598941,1754921468780,-460.0,0.00020273,2]
[378598942,1754921468789,-460.0,0.00020273,2]
[378598943,1754921468799,-460.0,0.00020273,2]
[378598944,1754921468808,-460.0,0.00020273,2]
[378598945,1754921468818,-460.0,0.00020273,2]
[378598946,1754921468827,-460.0,0.00020273,2]
[378598947,1754921468837,-460.0,0.00020273,2]
[378598948,1754921468847,-758.29,0.00020273,2]
[378598949,1754921468856,-460.0,0.00020273,2]
[378598950,1754921468865,-460.0,0.00020273,2]
[378598951,1754921468875,-704.57,0.00020273,2]
[378598952,1754921468885,-486.09453192,0.00020273,2]
[378598953,1754921468895,-460.0,0.00020273,2]
[378598954,1754921468905,-852.99,0.00020273,2]
[378598955,1754921468915,-1213.37,0.00020273,2]
[378598956,1754921468925,-460.0,0.00020273,2]
[378598957,1754921468935,-460.0,0.00020273,2]
[378598958,1754921468947,-460.0,0.00020273,2]
[378598959,1754921468957,-460.0,0.00020273,2]
[378598960,1754921468968,-460.0,0.00020273,2]
[378598961,1754921468978,-460.0,0.00020273,2]
[378598962,1754921468988,-686.31,0.00020273,2]
[378598963,1754921468998,-460.0,0.00020273,2]
[378598964,1754921469012,-569.87475365,0.00020273,2]
[378598965,1754921469022,-604.93,0.00020273,2]
[378598966,1754921469032,-460.0,0.00020273,2]
[378598967,1754921469042,-525.14,0.00020273,2]
[378598968,1754921469053,-1445.06,0.00020273,2]
[378598969,1754921469063,-460.0,0.00020273,2]
[378598970,1754921469073,-460.0,0.00020273,2]
[378598971,1754921469084,-460.0,0.00020273,2]
[378598972,1754921469093,-460.0,0.00020273,2]
[378598973,1754921469103,-715.59,0.00020273,2]
[378598974,1754921469113,-602.08,0.00020273,2]
[378598975,1754921469123,-460.0,0.00020273,2]
[378598976,1754921469133,-379.27025399,0.00020273,2]
[378598977,1754921469143,-460.0,0.00020273,2]
[378598978,1754921469154,-460.0,0.00020273,2]
[378598979,1754921469164,-494.3600084,0.00020273,2]
[378598980,1754921469174,-460.0,0.00020273,2]
[378598981,1754921469184,-460.0,0.00020273,2]
[378598982,1754921469194,-460.0,0.00020273,2]
[378598983,1754921469204,-460.0,0.00020273,2]
[378598984,1754921469214,-755.29,0.00020273,2]
[378598985,1754921469224,-701.14,0.00020273,2]
[378598986,1754921469380,-460.0,0.00020273,2]
[378598987,1754921469419,-460.0,0.00020273,2]
[378598988,1754921469428,-460.0,0.00020273,2]
[378598989,1754921469438,-460.0,0.00020273,2]
[378598990,1754921469447,-460.0,0.00020273,2]
[378598991,1754921469456,-460.0,0.00020273,2]
[378598992,1754921469465,-482.28639257,0.00020273,2]
[378598993,1754921469475,-460.0,0.00020273,2]
[378598994,1754921469484,-460.0,0.00020273,2]
[378598995,1754921469493,-560.10991536,0.00020273,2]
[378598996,1754921469503,-460.0,0.00020273,2]
[378598997,1754921469512,-460.0,0.00020273,2]
[378598998,1754921469522,-1066.29,0.00020273,2]
[378598999,1754921469531,-460.0,0.00020273,2]
[378599000,1754921469542,-460.0,0.00020273,2]
[378599001,1754921469552,-460.0,0.00020273,2]
[378599002,1754921469562,-460.0,0.00020273,2]
[378599003,1754921469572,-555.14,0.00020273,2]
[378599004,1754921469582,-474.92275701,0.00020273,2]
[378599005,1754921469591,-828.12,0.00020273,2]
[378599006,1754921469601,-460.0,0.00020273,2]
[378599007,1754921469610,-500.0,0.00020273,2]
[378599008,1754921469620,-460.0,0.00020273,2]
[378599009,1754921469630,-460.0,0.00020273,2]
[378599010,1754921469639,-460.0,0.00020273,2]
[378599011,1754921469649,-720.83,0.00020273,2]
[378599012,1754921469659,-460.0,0.00020273,2]
[378599013,1754921469668,-460.0,0.00020273,2]
[378599014,1754921469678,-596.36,0.00020273,2]
[378599015,1754921469688,-460.0,0.00020273,2]
[378599016,1754921469698,-1472.89,0.00020273,2]
[378599017,1754921469707,-479.88,0.00020273,2]
[378599018,1754921469717,-460.0,0.00020273,2]
[378599019,1754921469727,-460.0,0.00020273,2]
[378599020,1754921469737,-2508.11,0.00020273,2]
[378599021,1754921469745,-460.0,0.00020273,2]
[378599022,1754921469755,-460.0,0.00020273,2]
[378599023,1754921469765,-460.0,0.00020273,2]
[378599024,1754921469774,-460.0,0.00020273,2]
[378599025,1754921469783,-460.0,0.00020273,2]
[378599026,1754921469793,-570.32,0.00020273,2]
[378599027,1754921469802,-460.0,0.00020273,2]
[378599028,1754921469812,-460.0,0.00020273,2]
[378599029,1754921469821,-460.0,0.00020273,2]
[378599030,1754921469831,-537.27,0.00020273,2]
[378599031,1754921469840,-659.94,0.00020273,2]
[378599032,1754921469850,-2203.38,0.00020273,2]
[378599033,1754921469860,-460.0,0.00020273,2]
[378599034,1754921469869,-151.0,0.00020273,2]
[378599035,1754921469879,-460.0,0.00020273,2]
[378599036,1754921469888,-460.0,0.00020273,2]
[378599037,1754921469898,-460.0,0.00020273,2]
[378599038,1754921469908,-282.70749764,0.00020273,2]
[378599039,1754921469918,-460.0,0.00020273,2]
[378599040,1754921469927,-1941.12,0.00020273,2]
[378599041,1754921469938,-232.5585651,0.00020273,2]
[378599042,1754921469949,-1275.63,0.00020273,2]
[378599043,1754921469959,-708.54,0.00020273,2]
[378599044,1754921469968,-672.80212086,0.00020273,2]
[378599045,1754921469978,-460.0,0.00020273,2]
[378599046,1754921469989,-2691.20848343,0.00020273,2]
[378599047,1754921470000,-618.94,0.00020273,2]
[378599048,1754921470012,-546.04,0.00020273,2]
[378599049,1754921470022,-460.0,0.00020273,2]
[378599050,1754921470031,-6049.16386862,0.00020273,2]
[378599051,1754921470041,-616.33,0.00020273,2]
[378599052,1754921470051,-460.0,0.00020273,2]
[378599053,1754921470060,-460.0,0.00020273,2]
[378599054,1754921470069,-460.0,0.00020273,2]
[378599055,1754921470078,-2014.17,0.00020273,2]
[378599056,1754921470089,-460.0,0.00020273,2]
[378599057,1754921470099,-460.0,0.00020273,2]
[378599058,1754921470109,-1612.74,0.00020273,2]
[378599059,1754921470118,-504.94549371,0.00020273,2]
[378599060,1754921470127,-798.42,0.00020273,2]
[378599061,1754921470137,-460.0,0.00020273,2]
[378599062,1754921470147,-460.0,0.00020273,2]
[378599063,1754921470156,-1391.19,0.00020273,2]
[378599064,1754921470166,-605.66,0.00020273,2]
[378599065,1754921470175,-460.0,0.00020273,2]
[378599066,1754921470184,-460.0,0.00020273,2]
[378599067,1754921470194,-460.0,0.00020273,2]
[378599068,1754921470204,-460.0,0.00020273,2]
[378599069,1754921470214,-460.0,0.00020273,2]
[378599070,1754921470223,-873.33,0.00020273,2]
[378599071,1754921470233,-460.0,0.00020273,2]
[378599072,1754921470242,-541.52684619,0.00020273,2]
[378599073,1754921470252,-2166.10738474,0.00020273,2]
[378599074,1754921470262,-888.28,0.00020273,2]
[378599075,1754921470271,-964.65170749,0.00020273,2]
[378599076,1754921475396,2129.562927,0.00018131,2]
[378599077,1754921475539,3475.64375486,0.00018601,2]
[378599078,1754921475562,1524.35624514,0.00018601,2]
[378599082,1754921492199,5000.0,0.00018601,2]
[378599084,1754921509583,3475.64375486,0.00018601,2]
[378599085,1754921509608,1524.35624514,0.00018601,2]
[378599087,1754921525998,5000.0,0.00018601,2]
[378599153,1754921530724,3475.64375486,0.00018123,2]
[378599155,1754921530750,5411.52274244,0.00018123,2]
[378599326,1754921534932,-300.0,0.00018775,2]
[378599328,1754921534956,-500.0,0.00018776,2]
[378599330,1754921534977,-500.0,0.00018776,2]
[378599332,1754921534998,-500.0,0.00018776,2]
[378599334,1754921535029,-500.0,0.00018776,2]
[378599336,1754921535051,-168.67743248,0.00018776,2]
[378599337,1754921535073,-500.0,0.00018776,2]
[378599339,1754921535094,-241.32256752,0.00018909,2]
[378599572,1754921541089,25000.0,0.0003,120]
[378599598,1754921541687,4588.47725756,0.00018601,2]
[378599600,1754921541713,411.52274244,0.00018601,2]
[378600186,1754921557795,5000.0,0.00018601,2]
[378600203,1754921567228,837.0,0.00018601,2]
[378600205,1754921573809,3751.47725756,0.00018601,2]
[378600206,1754921573833,1248.52274244,0.00018601,2]
[378600207,1754921574658,-1876.56523602,0.00018873,2]
[378600208,1754921574684,-3873.36375841,0.00018873,2]
[378600209,1754921574709,-3104.36417554,0.000189,2]
[378600210,1754921574732,-46.89224085,0.00018909,2]
[378600211,1754921574758,-489.66,0.00018963,3]
[378600212,1754921574785,-1322.7801894,0.00018972,2]
[378600213,1754921574810,-500.0,0.00018972,2]
[378600214,1754921574836,-1322.7801894,0.00018972,2]
[378600215,1754921574861,-1322.7801894,0.00018972,2]
[378600216,1754921574887,-244.94667371,0.00018972,2]
[378600217,1754921574913,-1322.7801894,0.00018972,2]
[378600218,1754921574939,-1322.7801894,0.00018972,2]
[378600219,1754921574964,-1322.7801894,0.00018972,2]
[378600220,1754921574990,-1322.7801894,0.00018972,2]
[378600221,1754921575016,-1322.7801894,0.00018972,2]
[378600222,1754921575046,-1322.7801894,0.00018972,2]
[378600223,1754921575072,-1322.7801894,0.00018972,2]
[378600224,1754921575100,-1322.7801894,0.00018972,2]
[378600225,1754921575125,-500.0,0.00018972,2]
[378600226,1754921575151,-500.0,0.00018972,2]
[378600227,1754921575176,-500.0,0.00018972,2]
[378600228,1754921575202,-500.0,0.00018972,2]
[378600229,1754921575228,-500.0,0.00018972,2]
[378600230,1754921575253,-1322.7801894,0.00018972,2]
[378600231,1754921575279,-500.0,0.00018972,2]
[378600232,1754921575304,-500.0,0.00018972,2]
[378600233,1754921575329,-500.0,0.00018972,2]
[378600234,1754921575356,-500.0,0.00018972,2]
[378600235,1754921575384,-1322.7801894,0.00018972,2]
[378600236,1754921575408,-500.0,0.00018972,2]
[378600237,1754921575434,-500.0,0.00018972,2]
[378600238,1754921575460,-500.0,0.00018972,2]
[378600239,1754921575487,-500.0,0.00018972,2]
[378600240,1754921575513,-483.78379122,0.00018972,2]
[378600241,1754921575538,-500.0,0.00018972,2]
[378600242,1754921575563,-500.0,0.00018972,2]
[378600243,1754921575588,-500.0,0.00018972,2]
[378600244,1754921575615,-500.0,0.00018972,2]
[378600245,1754921575640,-500.0,0.00018972,2]
[378600246,1754921575667,-500.0,0.00018972,2]
[378600247,1754921575691,-500.0,0.00018972,2]
[378600248,1754921575719,-500.0,0.00018972,2]
[378600249,1754921575743,-626.85,0.00018972,2]
[378600250,1754921575770,-500.0,0.00018972,2]
[378600251,1754921575797,-1322.7801894,0.00018972,2]
[378600252,1754921575821,-216.91027936,0.00018972,2]
[378600253,1754921575845,-500.0,0.00018972,2]
[378600254,1754921575869,-500.0,0.00018972,2]
[378600255,1754921575894,-500.0,0.00018972,2]
[378600256,1754921575920,-1322.7801894,0.00018972,2]
[378600257,1754921575944,-500.0,0.00018972,2]
[378600258,1754921575977,-500.0,0.00018972,2]
[378600259,1754921576185,-500.0,0.00018972,2]
[378600260,1754921576212,-500.0,0.00018972,2]
[378600261,1754921576236,-500.0,0.00018972,2]
[378600262,1754921576263,-500.0,0.00018972,2]
[378600263,1754921576289,-648.34827409,0.00018972,2]
[378600264,1754921576316,-500.0,0.00018972,2]
[378600265,1754921576345,-500.0,0.00018972,2]
[378600266,1754921576372,-500.0,0.00018972,2]
[378600267,1754921576402,-500.0,0.00018972,2]
[378600268,1754921576429,-1322.7801894,0.00018972,2]
[378600269,1754921576456,-500.0,0.00018972,2]
[378600270,1754921576483,-1322.7801894,0.00018972,2]
[378600271,1754921576515,-1322.7801894,0.00018972,2]
[378600272,1754921576542,-500.0,0.00018972,2]
[378600273,1754921576568,-1322.7801894,0.00018972,2]
[378600274,1754921576595,-614.15193169,0.00018972,2]
[378600275,1754921576622,-500.0,0.00018972,2]
[378600276,1754921576649,-1428.60260456,0.00018972,2]
[378600277,1754921576674,-1428.60260456,0.00018972,2]
[378600278,1754921576700,-1428.60260456,0.00018972,2]
[378600279,1754921576726,-1428.60260456,0.00018972,2]
[378600280,1754921576752,-1428.60260456,0.00018972,2]
[378600281,1754921576778,-1428.60260456,0.00018972,2]
[378600282,1754921576804,-1428.60260456,0.00018972,2]
[378600283,1754921576830,-1428.60260456,0.00018972,2]
[378600284,1754921576856,-1428.60260456,0.00018972,2]
[378600285,1754921576883,-1428.60260456,0.00018972,2]
[378600286,1754921576908,-1200.0,0.00018972,2]
[378600287,1754921576936,-160.0,0.00018972,2]
[378600288,1754921576963,-127495.31399491,0.00018973,2]
[378600290,1754921592157,5000.0,0.00018601,2]
[378600292,1754921607877,3751.47725756,0.00018601,2]
[378600293,1754921607907,1248.52274244,0.00018601,2]
[378600294,1754921624861,5000.0,0.00018601,2]
[378600295,1754921642854,3751.47725756,0.00018601,2]
[378600296,1754921642879,1248.52274244,0.00018601,2]
[378600297,1754921650916,510.14203334,0.00018601,2]
[378600298,1754921660203,5000.0,0.00018601,2]
[378600299,1754921674969,-151.0,0.00018872,2]
[378600300,1754921676560,3241.33522422,0.00018601,2]
[378600301,1754921676585,1758.66477578,0.00018601,2]
[378600302,1754921686038,1740.7424726,0.00018156,2]
[378600303,1754921692663,5000.0,0.00018601,2]
[378600304,1754921709165,1500.59275162,0.00018601,2]
[378600305,1754921709192,3499.40724838,0.00018601,2]
[378600306,1754921724448,5000.0,0.00018601,2]
[378600309,1754921741636,1500.59275162,0.00018601,2]
[378600310,1754921741661,3499.40724838,0.00018601,2]
[378600311,1754921741835,-14.95780041,0.00018872,2]
[378600312,1754921741858,-1635.04219959,0.00018873,2]
[378600313,1754921757203,5000.0,0.00018601,2]
[378600314,1754921772481,208.4489713,0.00018005,2]
[378600315,1754921773416,1292.14378032,0.00018601,2]
[378600316,1754921773441,3707.85621968,0.00018601,2]
[378600317,1754921782007,252.21515649,0.00018601,2]
[378600318,1754921791004,5000.0,0.00018601,2]
[378600320,1754921808360,1039.92862383,0.00018601,2]
[378600321,1754921808386,3960.07137617,0.00018601,2]
[378600322,1754921810518,-175.48314076,0.00018871,2]
[378600323,1754921810541,-6.95238191,0.00018873,2]
[378600324,1754921810562,-2357.56447733,0.00018873,2]
[378600325,1754921820003,6039.92862383,0.00018156,2]
[378600326,1754921820027,3960.07137617,0.00018156,2]
[378600327,1754921826620,5000.0,0.00018601,2]
[378600332,1754921844196,1039.92862383,0.00018601,2]
[378600333,1754921844226,3960.07137617,0.00018601,2]
[378600337,1754921860456,5000.0,0.00018601,2]
[378600340,1754921877693,1039.92862383,0.00018601,2]
[378600341,1754921877717,3960.07137617,0.00018601,2]
[378600342,1754921882977,-57.17590786,0.00018873,2]
[378600343,1754921882999,-2582.2425056,0.00018873,2]
[378600344,1754921883022,-2071.58158654,0.000189,2]
[378600345,1754921892395,5726.4833719,0.00017971,2]
[378600352,1754921894382,313.44525193,0.00018601,2]
[378600353,1754921894408,4686.55474807,0.00018601,2]
[378600357,1754921939490,1447.0665182,0.00017968,2]
[378600358,1754921945064,2036.5073507,0.00018082,2]
[378600360,1754921954284,-5000.0,0.00018601,2]
[378600361,1754921954306,-1436.74525883,0.00018872,2]
[378600362,1754921954328,-60.25474117,0.000189,2]
[378600363,1754921957719,5000.0,0.000186,2]
[378600365,1754921973543,5000.0,0.000186,2]
[378600366,1754921978852,30547.9339534,0.00017971,2]
[378600368,1754921989481,5000.0,0.000186,2]
[378600369,1754922004714,1137.9519536,0.00018114,2]
[378600370,1754922005772,5000.0,0.000186,2]
[378600372,1754922020111,911.367035,0.000184,2]
[378600373,1754922020495,1245.84615718,0.00018401,2]
[378600374,1754922021785,5000.0,0.000186,2]
[378600390,1754922037544,5000.0,0.000186,2]
[378600393,1754922055371,5000.0,0.000186,2]
[378600412,1754922072190,5000.0,0.000186,2]
[378600415,1754922087741,5000.0,0.000186,2]
[378600416,1754922096423,24900.0,0.00017969,2]
[378600420,1754922103847,5000.0,0.000186,2]
[378600421,1754922119977,5000.0,0.000186,2]
[378600422,1754922137248,5000.0,0.000186,2]
[378600423,1754922138951,862.919894,0.00013699,2]
[378600425,1754922154500,-1257.15210145,0.0001887,2]
[378600426,1754922154523,-5430.01058321,0.00018873,2]
[378600427,1754922154544,-1931.79230816,0.00018873,2]
[378600428,1754922154564,-1416.04500718,0.000189,2]
[378600429,1754922154610,5000.0,0.000186,2]
[378600430,1754922170701,5000.0,0.000186,2]
[378600431,1754922186647,5000.0,0.000186,2]
[378600433,1754922202614,5000.0,0.000186,2]
[378600435,1754922220173,5000.0,0.000186,2]
[378600437,1754922235929,5000.0,0.000186,2]
[378600441,1754922252325,5000.0,0.000186,2]
[378600442,1754922269679,5000.0,0.000186,2]
[378600448,1754922286359,5000.0,0.000186,2]
[378600449,1754922302025,5000.0,0.000186,2]
[378600454,1754922318132,5000.0,0.000186,2]
[378600455,1754922334456,5000.0,0.000186,2]
[378600456,1754922351178,5000.0,0.000186,2]
[378600458,1754922362402,-1100.00808876,0.00018868,2]
[378600459,1754922362426,-3580.99191124,0.00018873,2]
[378600461,1754922366997,5000.0,0.000186,2]
[378600466,1754922383862,5000.0,0.000186,2]
[378600468,1754922399425,5000.0,0.000186,2]
[378600471,1754922417163,583.95713193,0.000186,2]
[378600481,1754922473192,4416.04286807,0.00018,2]
[378600482,1754922473217,5000.0,0.00018,2]
[378600483,1754922473242,5000.0,0.00018,2]
[378600484,1754922473274,5000.0,0.00018,2]
[378600485,1754922473312,5000.0,0.00018,2]
[378600486,1754922473348,5000.0,0.00018,2]
[378600487,1754922473379,5000.0,0.00018,2]